lending/lending_fUSD_20250516
["ID","MTS","AMOUNT","RATE_DAILY","PERIOD"]
[361221424,1747356640792,-1562.528,0.00012623,2]
[361221426,1747356640801,-155.544,0.00012623,2]
[361221428,1747356640813,-587.4494387,0.00012628,2]
[361221430,1747356640823,-1032.05,0.00012669,2]
[361221433,1747356640833,-207.4,0.00012729,2]
[361221435,1747356640843,-693.3919763,0.00012729,2]
[361221437,1747356640852,-352.5402,0.00012899,2]
[361221439,1747356640861,-166.98792648,0.000129,2]
[361221440,1747356640870,-1792.3439,0.000129,2]
[361221443,1747356640880,-152.11807676,0.000129,2]
[361221444,1747356640889,-1010.27801215,0.000129,2]
[361221446,1747356640899,-153.15683086,0.000129,2]
[361221449,1747356640908,-191.33582661,0.000129,2]
[361221451,1747356640918,-3402.05324726,0.000129,2]
[361221453,1747356640927,-578.0,0.00012932,2]
[361221455,1747356640936,-2955.1121021,0.00012934,2]
[361221457,1747356640946,-1112.57770642,0.00012992,2]
[361221459,1747356640956,-500.0,0.00012999,2]
[361221461,1747356640965,-500.0,0.00012999,2]
[361221463,1747356640975,-500.0,0.00012999,2]
[361221465,1747356640984,-500.0,0.00012999,2]
[361221467,1747356640994,-500.0,0.00012999,2]
[361221469,1747356641003,-500.0,0.00012999,2]
[361221471,1747356641013,-500.0,0.00012999,2]
[361221473,1747356641022,-501.28714922,0.00012999,2]
[361221475,1747356641031,-599.74348861,0.00012999,2]
[361221477,1747356641040,-500.0,0.00012999,2]
[361221479,1747356641049,-500.0,0.00012999,2]
[361221481,1747356641059,-500.0,0.00012999,2]
[361221483,1747356641069,-250.0,0.00012999,2]
[361221485,1747356641078,-500.0,0.00012999,2]
[361221487,1747356641087,-628.5983361,0.00012999,2]
[361221489,1747356641096,-500.0,0.00012999,2]
[361221491,1747356641105,-500.0,0.00012999,2]
[361221493,1747356641114,-271.65136666,0.00012999,2]
[361221495,1747356641123,-215.70958436,0.00012999,2]
[361221497,1747356641132,-189.69548226,0.00012999,2]
[361221499,1747356641141,-6657.00284327,0.00012999,2]
[361221500,1747356641150,-209242.93079516,0.00013,2]
[361221501,1747356641159,-279222.65963505,0.00013,2]
[361221502,1747356641171,-2080.078,0.00013,2]
[361221503,1747356641183,-23138.70928392,0.00013,2]
[361221504,1747356641193,-5705.67880457,0.00013,2]
[361221505,1747356641223,-312.54093169,0.00013,2]
[361221506,1747356641245,-7196.3281801,0.00013,2]
[361221507,1747356641256,-21278.74410741,0.00013,2]
[361221508,1747356641268,-641.01223463,0.00013,2]
[361221509,1747356641284,-519.75,0.00013,2]
[361221510,1747356641663,-242.96652435,0.00013,2]
[361221511,1747356641693,-3402.04911086,0.00013,2]
[361221516,1747356643085,-1147.0,0.00011977,2]
[361221517,1747356643095,-303.9009665,0.00013,2]
[361221521,1747356643191,-780.09132507,0.00013,2]
[361221522,1747356643538,-19197.25149965,0.00013,2]
[361221523,1747356643640,-4540.0,0.00013,2]
[361221536,1747356646031,-5098.62123324,0.00013,2]
[361221537,1747356646042,-754.54728693,0.00013,2]
[361221538,1747356646054,-784.9815,0.00013,2]
[361221539,1747356646066,-1414.157248,0.00013,2]
[361221540,1747356646077,-545.152395,0.00013,2]
[361221541,1747356646089,-800.9650605,0.00013,2]
[361221542,1747356646100,-472.95900005,0.00013,2]
[361221543,1747356646301,-80985.0,0.00013,2]
[361221544,1747356646314,-109005.98505692,0.00013,2]
[361221545,1747356646351,-500.0,0.00013,2]
[361222268,1747356695500,500.0,0.000273,120]
[361222272,1747357068480,450.0,0.0001,2]
[361222306,1747357219973,152.52,0.000249,31]
[361222307,1747357220152,152.52,0.000249,31]
[361222308,1747357220204,152.52,0.000249,31]
[361222309,1747357220247,152.52,0.000249,31]
[361222310,1747357220314,152.52,0.000249,31]
[361222311,1747357220366,152.52,0.000249,31]
[361222312,1747357220419,152.52,0.000249,31]
[361222314,1747357316321,150.0,0.00011743,7]
[361222324,1747357741264,655.69160632,9.71e-05,2]
[361222325,1747357741287,498.32839368,9.71e-05,2]
[361222326,1747357758313,-200.0,0.00010805,2]
[361222327,1747357758335,-200.0,0.00010817,2]
[361222328,1747357758355,-1200.0,0.0001157,2]
[361222329,1747357758375,-300.0,0.0001157,2]
[361222330,1747357758395,-3775.92525751,0.00011571,2]
[361222331,1747357764440,-10601.85985517,0.00011571,2]
[361222332,1747357764471,-5190.39803158,0.00011571,2]
[361222333,1747357773100,-10431.81685574,0.00011571,2]
[361222334,1747357773123,-196.52,0.00011597,2]
[361222335,1747357773146,-164.5,0.000116,2]
[361222336,1747357773168,-253.18870924,0.00011612,2]
[361222337,1747357773189,-250.0,0.00011647,2]
[361222338,1747357773212,-684.62884977,0.00011684,2]
[361222351,1747357823331,152.55,0.000249,31]
[361222352,1747357823388,152.55,0.000249,31]
[361222353,1747357823446,152.55,0.000249,31]
[361222354,1747357823500,152.55,0.000249,31]
[361222355,1747357823576,152.55,0.000249,31]
[361222356,1747357823647,152.55,0.000249,31]
[361222357,1747357823760,152.55,0.000249,31]
[361222364,1747357832379,-315.37115023,0.00011684,2]
[361222365,1747357832388,-246.91,0.00011691,2]
[361222366,1747357832397,-200.0,0.00011778,2]
[361222367,1747357832407,-250.0,0.00011872,2]
[361222368,1747357832416,-250.0,0.00011872,2]
[361222369,1747357832426,-200.0,0.00011872,2]
[361222370,1747357832435,-200.0,0.00011872,2]
[361222371,1747357832445,-1154.02,0.00011974,2]
[361222388,1747357832713,-1200.0,0.00011989,2]
[361222392,1747357832723,-553.0,0.0001199,2]
[361222395,1747357832733,-500.0,0.00012,2]
[361222398,1747357832742,-474.97092363,0.00012015,2]
[361222401,1747357832754,-654.83053613,0.00012015,2]
[361222404,1747357832763,-205.0,0.00012023,2]
[361222407,1747357832772,-1000.0,0.00012024,2]
[361222409,1747357832781,-1000.0,0.00012024,2]
[361222411,1747357832792,-23900.0,0.00012025,2]
[361222413,1747357832804,-876.0,0.00012058,2]
[361222415,1747357832813,-166.97,0.00012188,2]
[361222417,1747357832823,-161.5,0.0001219,2]
[361222419,1747357832832,-6412.58,0.00012285,2]
[361222421,1747357832842,-200.0,0.00012309,2]
[361222423,1747357832852,-155.0,0.00012309,2]
[361222425,1747357832861,-151.0,0.00012309,2]
[361222427,1747357832870,-719.52358209,0.00012309,2]
[361222429,1747357832882,-668.65185757,0.00012309,2]
[361222431,1747357832891,-207.4,0.00012309,2]
[361222433,1747357832901,-150.0,0.00012498,2]
[361222435,1747357832911,-1562.528,0.00012686,2]
[361222437,1747357832921,-155.544,0.00012686,2]
[361222439,1747357832931,-181.97,0.00012776,2]
[361222442,1747357832940,-1045.5411,0.00012793,2]
[361222444,1747357832950,-200.0,0.00012852,2]
[361222446,1747357832959,-207.4,0.00012857,2]
[361222448,1747357832970,-693.3919763,0.00012857,2]
[361222450,1747357832979,-804.54436954,0.00012857,2]
[361222452,1747357832990,-4575.16,0.00012893,2]
[361222454,1747357832999,-1541.38,0.00012893,2]
[361222456,1747357833008,-5258.95,0.00012893,2]
[361222458,1747357833018,-150.99,0.00012893,2]
[361222460,1747357833027,-2355.45,0.00012893,2]
[361222462,1747357833036,-3659.86,0.00012893,2]
[361222464,1747357833046,-1084.84,0.00012893,2]
[361222466,1747357833057,-299.99,0.00012893,2]
[361222468,1747357833067,-487.54,0.00012893,2]
[361222470,1747357833077,-134041.47,0.00012893,2]
[361222472,1747357833087,-500.0,0.00012899,2]
[361222474,1747357833096,-1184.3814,0.000129,2]
[361222476,1747357833106,-352.5402,0.000129,2]
[361222478,1747357833116,-171.5510923,0.000129,2]
[361222480,1747357833125,-196.0,0.000129,3]
[361222482,1747357833135,-317.04829175,0.000129,2]
[361222484,1747357833145,-514.2380001,0.000129,2]
[361222486,1747357833155,-1010.27801215,0.000129,2]
[361222488,1747357833164,-3402.05324726,0.000129,2]
[361222490,1747357833174,-152.71089022,0.000129,2]
[361222492,1747357833183,-536.91528428,0.00012926,2]
[361222494,1747357833193,-2955.1121021,0.00012934,2]
[361222496,1747357833202,-583.76000806,0.00012956,2]
[361222498,1747357833211,-1112.57770642,0.00012992,2]
[361222500,1747357833220,-189.69548226,0.00012999,2]
[361222502,1747357833229,-271.65136666,0.00012999,2]
[361222504,1747357833238,-215.70958436,0.00012999,2]
[361222505,1747357833247,-6657.00284427,0.00012999,2]
[361222508,1747357833256,-55849.976949,0.00013,2]
[361222510,1747357833269,-13297.31620413,0.00013,2]
[361222515,1747357833306,-5106.20000026,0.00013,2]
[361222520,1747357833344,-1573.54254,0.00013,2]
[361222524,1747357833380,-795.15596,0.00013,2]
[361222529,1747357833411,-629.15700853,0.00013,2]
[361222534,1747357833453,-2009.13154965,0.00013,2]
[361222802,1747357838835,-1587.44673799,0.00013,2]
[361222803,1747357838849,-1315.41980231,0.00013,2]
[361222804,1747357838861,-638.92157563,0.00013,2]
[361222805,1747357838895,-476.43552863,0.00013,2]
[361222828,1747357840332,-8558.24460834,0.00013,2]
[361222830,1747357840343,-2164.215192,0.00013,2]
[361222876,1747357843088,-924.5589717,0.00013,2]
[361222877,1747357843100,-116018.00816695,0.00013,2]
[361222878,1747357843110,-505527.43472341,0.00013,2]
[361222879,1747357843146,-9407.19625015,0.00013,2]
[361222880,1747357843362,-253.18870924,0.00013,2]
[361222881,1747357843374,-40731.49535375,0.00013,2]
[361222882,1747357843422,-383.20020393,0.00013,2]
[361222889,1747357843539,-15240.07562609,0.00013,2]
[361222890,1747357846248,-1024.15,0.00013,2]
[361222891,1747357846357,-45625.16989896,0.00013,2]
[361222892,1747357846369,-378.43528873,0.00013,2]
[361222893,1747357846414,-723.73,0.00013,2]
[361222894,1747357846782,-269.24704914,0.00013,2]
[361222895,1747357846796,-1208.0,0.00013,2]
[361222896,1747357846831,-692.17038355,0.00013,2]
[361222897,1747357846853,-2866.08229076,0.00013,2]
[361222899,1747357846864,-1400.3992437,0.00013,2]
[361222974,1747358426986,152.59,0.000249,31]
[361222975,1747358427110,152.59,0.000249,31]
[361222976,1747358427201,152.59,0.000249,31]
[361222977,1747358427267,152.59,0.000249,31]
[361222978,1747358427322,152.59,0.000249,31]
[361222979,1747358427374,152.59,0.000249,31]
[361222980,1747358427440,152.59,0.000249,31]
[361222982,1747358744951,-192.2924088,0.00010115,2]
[361222983,1747358746612,-344.84612336,0.00010115,2]
[361222984,1747358751118,-198.93256034,0.00010115,2]
[361222985,1747358754931,-224.9289075,0.00010115,2]
[361222986,1747358759693,2000.0,0.000249,31]
[361222987,1747358759725,-135.49,0.00010115,2]
[361222989,1747358764664,189.59881463,8e-05,2]
[361222990,1747358831096,-220.11703996,0.0001206,2]
[361222991,1747358832761,-29.88296004,0.0001206,2]
[361222992,1747358832781,-164.85586839,0.00012147,2]
[361222993,1747358878835,150.0,0.00011899,7]
[361222994,1747358891476,450.0,0.0001,2]
[361222996,1747358948071,-818.01165508,0.00010959,2]
[361222997,1747358948092,-300.0,0.00010999,2]
[361222998,1747358948113,-638.16588292,0.00011,2]
[361222999,1747358967079,-16013.60704255,0.00011,2]
[361223005,1747359008084,224.35853939,0.00025,30]
[361223008,1747359008347,171.42758022,0.00027397,120]
[361223009,1747359029164,165.29,0.000249,31]
[361223034,1747359032026,-300.0,0.00010999,2]
[361223037,1747359032036,-1200.0,0.00010999,2]
[361223039,1747359032045,-300.0,0.00010999,2]
[361223041,1747359032054,-17298.82719889,0.00011,2]
[361223043,1747359032063,-161.5,0.00011686,2]
[361223045,1747359032072,-1001.47296075,0.0001185,2]
[361223047,1747359032081,-23900.0,0.00011851,2]
[361223049,1747359032090,-3410.00890078,0.000119,2]
[361223051,1747359032099,-158.11,0.00011924,2]
[361223053,1747359032108,-500.0,0.00012,2]
[361223055,1747359032117,-420.0,0.00012087,2]
[361223057,1747359032126,-1680.0,0.00012099,2]
[361223059,1747359032135,-19.69413161,0.00012147,2]
[361223061,1747359032144,-156.472,0.0001219,2]
[361223063,1747359032153,-1000.0,0.00012191,2]
[361223065,1747359032162,-200.0,0.000122,4]
[361223066,1747359032171,-3410.00890074,0.00012245,2]
[361223068,1747359032180,-500.0,0.000123,4]
[361223070,1747359032189,-1096.49,0.00012379,2]
[361223072,1747359032198,-800.0,0.000124,4]
[361223074,1747359032208,-150.0,0.00012498,2]
[361223076,1747359032217,-1100.0,0.000125,4]
[361223078,1747359032226,-3410.00890074,0.0001259,2]
[361223080,1747359032235,-1400.0,0.000126,4]
[361223082,1747359032244,-200.0,0.000127,4]
[361223084,1747359032253,-804.5443695,0.00012725,2]
[361223086,1747359032262,-501.0,0.0001274,2]
[361223088,1747359032271,-1249.255,0.0001279,2]
[361223090,1747359032280,-4066.228,0.0001279,2]
[361223092,1747359032289,-500.0,0.00012793,2]
[361223094,1747359032298,-200.0,0.000128,4]
[361223096,1747359032307,-28879.71391525,0.0001287,2]
[361223098,1747359032316,-207.4,0.00012882,2]
[361223100,1747359032325,-190.15595666,0.00012889,2]
[361223102,1747359032335,-150.99670905,0.00012889,2]
[361223104,1747359032344,-1250.022,0.00012889,2]
[361223106,1747359032354,-155.544,0.00012889,2]
[361223108,1747359032362,-241605.7518519,0.0001289,2]
[361223110,1747359032374,-21588.05772727,0.0001289,2]
[361223112,1747359032383,-200.0,0.00012891,2]
[361223114,1747359032397,-12790.5266,0.000129,2]
[361223116,1747359032406,-150.99,0.000129,2]
[361223117,1747359032415,-270.42567273,0.000129,2]
[361223118,1747359032427,-29.56432727,0.000129,2]
[361223119,1747359032437,-150.99,0.000129,2]
[361223120,1747359032447,-4587.1324,0.000129,2]
[361223121,1747359032456,-642.6594,0.000129,2]
[361223122,1747359032466,-171.5510923,0.000129,2]
[361223123,1747359032475,-158.52414587,0.000129,2]
[361223124,1747359032488,-5280.62,0.000129,2]
[361223125,1747359032497,-154.41022812,0.000129,2]
[361223126,1747359032507,-200.0,0.000129,4]
[361223127,1747359032517,-191.15244139,0.000129,2]
[361223128,1747359032527,-939.46843638,0.000129,2]
[361223129,1747359032536,-154.41022807,0.000129,2]
[361223130,1747359032545,-154.41022807,0.000129,2]
[361223131,1747359032555,-154.41022807,0.00012901,2]
[361223132,1747359032565,-154.41022807,0.00012901,2]
[361223133,1747359032575,-154.41022807,0.00012901,2]
[361223134,1747359032585,-154.41022807,0.00012901,2]
[361223135,1747359032594,-200.0,0.00012903,2]
[361223136,1747359032603,-2364.0896817,0.00012934,2]
[361223137,1747359032613,-3410.00890074,0.00012934,2]
[361223138,1747359032622,-160.0,0.00012959,2]
[361223139,1747359032631,-500.0,0.00012973,2]
[361223140,1747359032640,-500.0,0.00012973,2]
[361223141,1747359032650,-500.0,0.00012973,2]
[361223142,1747359032659,-500.0,0.00012973,2]
[361223143,1747359032668,-500.0,0.00012973,2]
[361223144,1747359032678,-503.58494517,0.00012973,2]
[361223145,1747359032687,-565.06032611,0.00012992,2]
[361223146,1747359032696,-200.0,0.00012992,2]
[361223147,1747359032704,-151.0,0.00012992,2]
[361223148,1747359032713,-155.0,0.00012992,2]
[361223149,1747359032723,-668.65185757,0.00012992,2]
[361223150,1747359032732,-74446.59563915,0.00013,2]
[361223151,1747359038038,-179.95601121,0.00012869,2]
[361223152,1747359038047,-181.19469064,0.00012869,2]
[361223153,1747359038056,-500.0,0.00012869,2]
[361223154,1747359038066,-500.0,0.00012869,2]
[361223155,1747359038075,-500.0,0.00012869,2]
[361223156,1747359038084,-500.0,0.00012869,2]
[361223157,1747359038093,-500.0,0.00012869,2]
[361223158,1747359038102,-500.0,0.00012869,2]
[361223159,1747359038111,-500.0,0.00012869,2]
[361223160,1747359038120,-500.0,0.00012869,2]
[361223161,1747359038130,-500.0,0.00012869,2]
[361223162,1747359038139,-289.43443925,0.00012869,2]
[361223163,1747359038148,-500.0,0.00012869,2]
[361223164,1747359038157,-500.0,0.00012869,2]
[361223165,1747359038166,-500.0,0.00012869,2]
[361223166,1747359038175,-500.0,0.00012869,2]
[361223167,1747359038184,-500.0,0.00012869,2]
[361223168,1747359038193,-500.0,0.00012869,2]
[361223169,1747359038202,-500.0,0.00012869,2]
[361223170,1747359038211,-500.0,0.00012869,2]
[361223171,1747359038220,-500.0,0.00012869,2]
[361223172,1747359038229,-500.0,0.00012869,2]
[361223173,1747359038238,-500.0,0.00012869,2]
[361223174,1747359038247,-500.0,0.00012869,2]
[361223175,1747359038256,-500.0,0.00012869,2]
[361223176,1747359038266,-500.0,0.00012869,2]
[361223177,1747359038275,-500.0,0.00012869,2]
[361223178,1747359038285,-500.0,0.00012869,2]
[361223179,1747359038294,-500.0,0.00012869,2]
[361223180,1747359038303,-500.0,0.00012869,2]
[361223181,1747359038314,-500.0,0.00012869,2]
[361223182,1747359038323,-500.0,0.00012869,2]
[361223183,1747359038332,-500.0,0.00012869,2]
[361223184,1747359038342,-500.0,0.00012869,2]
[361223185,1747359038351,-500.0,0.00012869,2]
[361223186,1747359038361,-500.0,0.00012869,2]
[361223187,1747359038371,-500.0,0.00012869,2]
[361223188,1747359038381,-500.0,0.00012869,2]
[361223189,1747359038390,-500.0,0.00012869,2]
[361223190,1747359038400,-500.0,0.00012869,2]
[361223191,1747359038410,-500.0,0.00012869,2]
[361223192,1747359038419,-500.0,0.00012869,2]
[361223193,1747359038428,-500.0,0.00012869,2]
[361223194,1747359038437,-500.0,0.00012869,2]
[361223195,1747359038447,-500.0,0.00012869,2]
[361223196,1747359038457,-500.0,0.00012869,2]
[361223197,1747359038466,-500.0,0.00012869,2]
[361223198,1747359038476,-500.0,0.00012869,2]
[361223199,1747359038485,-500.0,0.00012869,2]
[361223200,1747359038495,-500.0,0.00012869,2]
[361223201,1747359038504,-315.51926893,0.00012869,2]
[361223202,1747359038516,-500.0,0.00012869,2]
[361223203,1747359038525,-17093.66919596,0.00013,2]
[361223204,1747359038537,-1582.87088704,0.00013,2]
[361223205,1747359038548,-653.53943763,0.00013,2]
[361223206,1747359038559,-2599.18817429,0.00013,2]
[361223215,1747359039606,-500.0,0.00012869,2]
[361223216,1747359039617,-177783.09212011,0.00013,2]
[361223217,1747359039626,-443262.35077025,0.00013,2]
[361223218,1747359039873,-1185.86211305,0.00013,2]
[361223232,1747359042747,-252.85737301,0.00013,2]
[361223235,1747359045733,-3453.88301469,0.00013,2]
[361223238,1747359122136,1280.0,0.00015,10]
[361223242,1747359158576,-200.0,0.000122,4]
[361223243,1747359158598,-53.4665309,0.000123,4]
[361223245,1747359160768,-152.74,0.000123,4]
[361223246,1747359162824,-169.41137241,0.000123,4]
[361223247,1747359166301,-124.38209669,0.000123,4]
[361223248,1747359166324,-206.2065309,0.000124,4]
[361223249,1747359170200,-277.00028035,0.000124,4]
[361223250,1747359172980,-261.44487165,0.000124,4]
[361223253,1747359278227,150.0,0.000125,5]
[361223254,1747359311486,943.7938096,0.00025,30]
[361223255,1747359342005,1800.0,0.00025,30]
[361223256,1747359373893,1800.0,0.00027,120]
[361223257,1747359396631,500.0,0.00025,30]
[361223259,1747359419132,500.0,0.00025,30]
[361223260,1747359437842,500.0,0.00025,30]
[361223261,1747359446855,500.0,0.00025,30]
[361223263,1747359470705,500.0,0.00027397,120]
[361223265,1747359567563,500.0,0.00023287,30]
[361223266,1747359567616,500.0,0.00023835,30]
[361223267,1747359567706,500.0,0.00024383,30]
[361223268,1747359567948,557.84661096,0.00024931,30]
[361223269,1747359630739,165.3,0.000249,31]
[361223270,1747359630974,165.3,0.000249,31]
[361223271,1747359631173,165.3,0.000249,31]
[361223272,1747359631226,165.3,0.000249,31]
[361223273,1747359631361,165.3,0.000249,31]
[361223274,1747359631418,165.3,0.000249,31]
[361223275,1747359631478,165.3,0.000249,31]
[361223276,1747359641568,500.0,0.00027397,120]
[361223277,1747359651751,500.0,0.00027397,120]
[361223278,1747359668860,-252.86038133,0.00011935,2]
[361223279,1747359671564,-192.73622149,0.00011935,2]
[361223280,1747359674725,-170.55339718,0.00011935,2]
[361223281,1747359676324,-151.53640827,0.00011935,2]
[361223284,1747359750969,-294.50366978,0.00010996,2]
[361223285,1747359754799,-285.50247882,0.00010996,2]
[361223286,1747359757083,-230.41762075,0.00010996,2]
[361223287,1747359758597,-31.44323865,0.00010996,2]
[361223288,1747359758620,-245.49792915,0.00010998,2]
[361223289,1747359761886,-179.04751958,0.00010998,2]
[361223290,1747359763501,-266.421135,0.00010998,2]
[361223291,1747359768449,-150.90042427,0.00010998,2]
[361223292,1747359768471,-144.30098406,0.00010998,2]
[361223293,1747359770442,-231.55859167,0.00010998,2]
[361223294,1747359772038,-200.67,0.00010998,2]
[361223295,1747359774274,-214.13273447,0.00010998,2]
[361223296,1747359776324,-51.2046978,0.00010998,2]
[361223297,1747359776346,-196.26281463,0.00010998,2]
[361223298,1747359779796,-172.239262,0.00010996,2]
[361223299,1747359779821,-36.45282127,0.00010996,2]
[361223300,1747359783178,-128.90500273,0.00010996,2]
[361223301,1747359783201,-64.29465802,0.00010998,2]
[361223302,1747359790827,-233.80033925,0.00010996,2]
[361223303,1747359794234,-161.7,0.00010996,2]
[361223304,1747359826928,1159.29,9.751e-05,2]
[361223305,1747359951221,150.0,0.00011475,7]
[361223306,1747360046358,-313.60268026,0.00010995,2]
[361223340,1747360154084,-886.39731974,0.00010995,2]
[361223341,1747360154105,-300.0,0.00010995,2]
[361223342,1747360154125,-175.1,0.00011554,2]
[361223343,1747360154145,-23900.0,0.00011619,2]
[361223344,1747360154170,-5371.11,0.00011628,2]
[361223345,1747360154192,-365.99,0.00011642,2]
[361223346,1747360154211,-1162.52524026,0.00011662,2]
[361223368,1747360226588,409.0,0.00027397,120]
[361223369,1747360231640,-342.10809465,0.00010895,2]
[361223370,1747360231650,-984.90475974,0.00011662,2]
[361223371,1747360231659,-250.0,0.00011906,2]
[361223372,1747360231669,-232.31359173,0.00011935,2]
[361223373,1747360231678,-5543.75,0.00012,2]
[361223374,1747360231688,-1200.0,0.00012014,2]
[361223375,1747360231697,-1159.29,0.00012015,2]
[361223376,1747360231707,-189.11,0.00012148,2]
[361223377,1747360231717,-799.0,0.0001219,2]
[361223378,1747360231727,-1467.642,0.0001219,2]
[361223379,1747360231736,-588.661,0.0001219,2]
[361223380,1747360231746,-6859.355,0.0001219,2]
[361223381,1747360231755,-4105.453,0.0001219,2]
[361223382,1747360231764,-154.0,0.0001219,2]
[361223383,1747360231774,-880.0,0.0001219,2]
[361223384,1747360231783,-176.537,0.0001219,2]
[361223385,1747360231792,-300.0,0.000122,4]
[361223386,1747360231801,-233.63,0.00012245,2]
[361223387,1747360231810,-600.0,0.000123,4]
[361223388,1747360231819,-167.31,0.00012398,2]
[361223389,1747360231829,-900.0,0.000124,4]
[361223390,1747360231838,-200.0,0.0001245,2]
[361223391,1747360231847,-217.74433198,0.00012498,2]
[361223392,1747360231857,-1200.0,0.000125,4]
[361223393,1747360231866,-2678.02269,0.000125,5]
[361223394,1747360231875,-2678.02269,0.000125,5]
[361223395,1747360231885,-2678.02271,0.000125,5]
[361223396,1747360231893,-1500.0,0.000126,4]
[361223397,1747360231902,-807.72338721,0.00012627,2]
[361223398,1747360231911,-500.0,0.00012673,2]
[361223399,1747360231920,-500.0,0.00012673,2]
[361223400,1747360231929,-500.0,0.00012673,2]
[361223401,1747360231938,-500.0,0.00012673,2]
[361223402,1747360231947,-500.0,0.00012673,2]
[361223403,1747360231959,-500.0,0.00012673,2]
[361223404,1747360231971,-181.55192689,0.00012673,2]
[361223405,1747360231980,-278.94344392,0.00012673,2]
[361223406,1747360231989,-300.0,0.000127,4]
[361223407,1747360232000,-207.4,0.00012782,2]
[361223408,1747360232009,-4030.1876,0.0001279,2]
[361223409,1747360232018,-364.4347,0.0001279,2]
[361223410,1747360232029,-300.0,0.000128,4]
[361223411,1747360232038,-500.0,0.00012896,2]
[361223412,1747360232047,-200.0,0.00012896,2]
[361223413,1747360232056,-39.55720618,0.00012899,2]
[361223414,1747360232068,-561.36719382,0.00012899,2]
[361223415,1747360232077,-331.3519,0.000129,2]
[361223416,1747360232086,-180.22348996,0.000129,2]
[361223417,1747360232095,-183.61614532,0.000129,2]
[361223418,1747360232104,-152.15584996,0.000129,2]
[361223419,1747360232113,-300.0,0.000129,4]
[361223420,1747360232123,-2957.2290577,0.000129,2]
[361223421,1747360232133,-161.82074599,0.000129,2]
[361223422,1747360232143,-627.3859244,0.000129,2]
[361223423,1747360232162,-191.5296057,0.000129,2]
[361223424,1747360232172,-1892.3079791,0.00012934,2]
[361223426,1747360232182,-501.31029843,0.00012973,2]
[361223428,1747360232191,-508.05217038,0.00012973,2]
[361223430,1747360232200,-500.57611015,0.00012973,2]
[361223432,1747360232209,-524.85252121,0.00012973,2]
[361223434,1747360232219,-501.02205933,0.00012973,2]
[361223436,1747360232228,-315.56,0.00012976,2]
[361223438,1747360232237,-151.0,0.00012992,2]
[361223440,1747360232247,-200.0,0.00012992,2]
[361223442,1747360232256,-221.27582536,0.00012992,2]
[361223443,1747360232265,-668.65185757,0.00012992,2]
[361223444,1747360232274,-719.52358209,0.00012992,2]
[361223445,1747360232284,-156.80306497,0.00012992,2]
[361223446,1747360232294,-152.44951858,0.00012992,2]
[361223447,1747360232303,-2714.826,0.00012999,2]
[361223448,1747360232313,-156.332,0.00012999,2]
[361223449,1747360232323,-32656.90550881,0.00013,2]
[361223450,1747360232452,-1087.9969,0.00013,2]
[361223451,1747360232464,-16417.57250896,0.00013,2]
[361223452,1747360237548,-1823.561,0.0001219,2]
[361223453,1747360237559,-133.58692197,0.00013,2]
[361223454,1747360237862,-21925.77815351,0.00013,2]
[361223455,1747360240207,-118712.3287946,0.00013,2]
[361223456,1747360240216,-503116.90181595,0.00013,2]